Cogmind - Beta 16.1 @@@ ROGUE MODE // 2026.04.01 @ 14:06:31 Player: gamerman Result: Destroyed by D-53 Grenadier with Mini Grenade Launcher Performance ------------- Evolutions (0) 0 Regions Visited (4) 800 Robots Destroyed (13) 65 Value Destroyed (220) 220 Prototype IDs (0) 0 Alien Tech Used (0) 0 Bonus (60) 60 TOTAL SCORE: 1145 Bonus ------- Follower Combat Kills 60 Cogmind --------- Core Integrity 0/250 Matter 251/300 Energy 98/100 System Corruption 0% Temperature Cool (0) Movement Core (50) Location -9/Mines Parts ------- > --- POWER (1) -------- (None) > --- PROPULSION (2) --- Aluminum Leg Wheel > --- UTILITY (2) ------ Signal Interpreter > --- WEAPON (2) ------- Makeshift Spear > --- INVENTORY (5) ---- Makeshift Sensor Array Core Shielding Makeshift Hacking Suite Light Assault Rifle Peak State ------------ > --- POWER ------------ Ion Engine > --- PROPULSION ------- Wheel Compact Wheel > --- UTILITY ---------- Small Storage Unit Signal Interpreter > --- WEAPON ----------- Rocket Launcher Makeshift Spear > --- INVENTORY -------- Aluminum Leg Aluminum Leg Aluminum Leg Wheel Makeshift Sensor Array Core Shielding Makeshift Hacking Suite Light Assault Rifle [Rating: 12] Favorites ----------- Power Light Ion Engine Engine Light Ion Engine Propulsion Compact Wheel Leg Aluminum Leg Wheel Compact Wheel Utility Small Storage Unit Storage Small Storage Unit Processor Signal Interpreter Weapon Grenade Launcher Energy Gun Medium Laser Launcher Grenade Launcher Piercing Weapon Makeshift Spear Build | -11 -10 -10 -10 -9 ------- Run | Yrd Mat Min Exi Min Slots Evolved . | . . . . . Power . | . . . . . Propulsion . | . . . . . Utility . | . . . . . Weapon . | . . . . . Parts Attached 16 | 6 4 . . 6 Power 3 | 1 1 . . 1 Engine 3 | 1 1 . . 1 Core . | . . . . . Reactor . | . . . . . Propulsion 5 | 2 . . . 3 Treads . | . . . . . Leg 1 | . . . . 1 Wheel 4 | 2 . . . 2 Hover . | . . . . . Flight . | . . . . . Utility 2 | 1 1 . . . Device . | . . . . . Storage 1 | 1 . . . . Processor 1 | . 1 . . . Hackware . | . . . . . Protection . | . . . . . Artifact . | . . . . . Weapon 6 | 2 2 . . 2 Energy Gun 3 | 2 1 . . . Energy Cannon . | . . . . . Ballistic Gun . | . . . . . Ballistic Cannon . | . . . . . Launcher 2 | . 1 . . 1 Special Weapon . | . . . . . Impact Weapon . | . . . . . Slashing Weapon . | . . . . . Piercing Weapon 1 | . . . . 1 Special Melee Weapon . | . . . . . Unidentified Prototypes . | . . . . . Parts Lost 6 | . 2 . 1 3 Power 3 | . 1 . 1 1 Propulsion 1 | . . . . 1 Utility . | . . . . . Weapon 2 | . 1 . . 1 Highest Loss Streak 3 | . 2 . 1 3 To Critical Strikes . | . . . . . Average Backups 4 | 1 2 3 5 7 Power . | . . . . . Propulsion 1 | . . 1 1 3 Utility 1 | . . 1 2 3 Weapon 1 | . 1 1 2 1 Tool/Special . | . . . . . Unused Backups 8 | . . . . 8 Power . | . . . . . Propulsion 4 | . . . . 4 Utility 3 | . . . . 3 Weapon 1 | . . . . 1 Tool/Special . | . . . . . Average Slot Usage (%) 82 | . 86 85 75 97 Engine 7 | . 10 14 4 12 Wheel 27 | . 28 28 28 27 Storage 13 | . 14 14 14 13 Processor 13 | . 11 14 14 14 Energy Gun 2 | . 13 . . . Launcher 12 | . 7 14 14 13 Piercing Weapon 2 | . . . . 13 Peak Build Rating 12 | 6 7 6 7 12 Average Rating 7 | 4 6 6 6 11 On Entrance 4 | . 6 6 6 6 Avg Prop Armor Cover (%) 34 | . . . . 34 Naked Turns . | . . . . . Heaviest Build 16 | 12 13 11 11 16 Greatest Support 26 | 26 26 26 26 26 Greatest Overweight (x) 1 | 1 . . . . Average Overweight (x) . | . . . . . Largest Inventory Capacity 8 | 8 8 8 8 8 Average Capacity 7 | 6 8 8 8 7 Most Carried 8 | 2 4 4 6 8 Average Carried 4 | 1 2 3 5 7 Final Capacity 8 | 8 8 8 8 5 Final Carried 6 | 2 3 4 6 4 Class Distribution -------------------- 100% | Mutant Dominant Class ---------------- Mutant | -10/Materials Mutant | -10/Mines Mutant | -10/Exiles Mutant | -9/Mines Resources | -11 -10 -10 -10 -9 ----------- Run | Yrd Mat Min Exi Min Matter Collected 675 | 218 123 . 34 300 Remotely . | . . . . . Salvage Created 394 | . 254 . 34 106 Parts 20 | . 15 . . 5 Haulers Intercepted 2 | . 2 . . . Recyclers Shooed . | . . . . . Parts Field Recycled . | . . . . . Retrieved Matter . | . . . . . Parts Self-Destructed . | . . . . . Prevented . | . . . . . Parts Restored . | . . . . . Kills | -11 -10 -10 -10 -9 ------- Run | Yrd Mat Min Exi Min Combat Hostiles Destroyed 3 | . 3 . . . AOE 3 | . 3 . . . Classes Destroyed 6 | . 5 . . 1 Worker 2 | . 2 . . . Builder 1 | . . . . 1 Hauler 2 | . 2 . . . Recycler 2 | . 1 . . 1 Watcher 2 | . 2 . . . Grunt 4 | . 3 . 1 . Best Kill Streak 5 | . 5 . . 2 Combat Bots Only 2 | . 2 . . . Max Kills in Single Turn 3 | . 3 . 1 1 Gunslinging . | . . . . . Exploded 1 | . 1 . . . Melee . | . . . . . Uniques/NPCs Destroyed . | . . . . . Combat | -11 -10 -10 -10 -9 -------- Run | Yrd Mat Min Exi Min Hostile Shots Fired 25 | . 3 . . 22 Missed 8 | . 1 . . 7 Hits 17 | . 2 . . 15 Melee 1 | . . . . 1 Projectile 16 | . 2 . . 14 AOE 9 | . . . . 9 Damage Taken 795 | . 244 . 135 416 Core 280 | . 92 . 19 169 Absorbed by Shields . | . . . . . Core Remaining (%) 100 | 100 . . . . Volleys Fired 44 | . 18 . 22 4 Largest 2 | . 2 . 1 1 Hottest 90 | . 90 . 30 33 Shots Fired 49 | . 23 . 22 4 Gun 10 | . 10 . . . Cannon . | . . . . . Launcher 39 | . 13 . 22 4 Special . | . . . . . Kinetic . | . . . . . Thermal 7 | . 7 . . . Explosive 39 | . 13 . 22 4 Electromagnetic 3 | . 3 . . . Robot Hit Streak 7 | . 7 . . 3 Robot Miss Streak 2 | . 2 . . 1 Penetration Max . | . . . . . Secondary Targets . | . . . . . Shots Hit Robots 16 | . 11 . . 5 Core Hits 27 | . 15 . 7 5 Critical Kills . | . . . . . Critical Parts Destroyed . | . . . . . Critical Strikes . | . . . . . Melee Attacks 2 | . . . . 2 Impact . | . . . . . Slashing . | . . . . . Piercing 2 | . . . . 2 Sneak Attacks 2 | . . . . 2 Combat Hostiles . | . . . . . Follow-up Attacks . | . . . . . Damage Inflicted 1000 | . 674 . 173 153 Guns 61 | . 61 . . . Cannons . | . . . . . Explosions 827 | . 613 . 173 41 Melee 112 | . . . . 112 Ramming . | . . . . . Kinetic . | . . . . . Thermal 177 | . 177 . . . Explosive 686 | . 472 . 173 41 Electromagnetic 25 | . 25 . . . Impact . | . . . . . Slashing . | . . . . . Piercing 112 | . . . . 112 Highest Corruption . | . . . . . Average Corruption . | . . . . . Corruption Purged . | . . . . . Corruption Blocked . | . . . . . Overload Shots . | . . . . . Overflow Damage 155 | . 108 . 28 19 Projectiles . | . . . . . Explosions 136 | . 108 . 28 . Melee 19 | . . . . 19 Knockbacks . | . . . . . Impact . | . . . . . Kinetic . | . . . . . Secondary . | . . . . . Self-Inflicted Damage 273 | . 221 . 39 13 Shots 9 | . 7 . 1 1 Rammed . | . . . . . Targets Rammed . | . . . . . Kicked . | . . . . . Crushed . | . . . . . Highest Temperature 137 | . 137 . 5 . Average Temperature 49 | . 52 . 5 . Received Heat Transfer 21 | . 15 . . 6 Siege Activations . | . . . . . Martial Activations . | . . . . . Shielding Activations . | . . . . . Robots Disrupted . | . . . . . Combat Hostiles . | . . . . . Robots Corrupted . | . . . . . Combat Hostiles . | . . . . . Parts Fried . | . . . . . Impact Corruptions . | . . . . . Robots Melted . | . . . . . Combat Hostiles . | . . . . . Parts Melted . | . . . . . Heat Transferred 199 | . 199 . . . Parts Sabotaged . | . . . . . Parts Stolen . | . . . . . Parts Stripped . | . . . . . Power Chain Reactions 1 | . 1 . . . Alert | -11 -10 -10 -10 -9 ------- Run | Yrd Mat Min Exi Min Maximum Alert Level . | . . . . . Low Security (%) 100 | 100 100 100 . 100 Level 1 . | . . . . . Level 2 . | . . . . . Level 3 . | . . . . . Level 4 . | . . . . . Level 5 . | . . . . . High Security . | . . . . . Max Security . | . . . . . Peak Influence 153 | . 153 47 . 56 Initial 47 | . . 47 . . Average 30 | . 69 11 . 13 Influence Increases 369 | . 263 . . 106 Destroy 0b10 Robot/C 100 | . 60 . . 40 Destroy 0b10 Robot/NC 45 | . 35 . . 10 Destroy Leader 28 | . 18 . . 10 Allied During Kill 6 | . . . . 6 Disable Machine 75 | . 60 . . 15 Destroy Structure 115 | . 90 . . 25 Influence Decreases 369 | . 140 123 . 106 Entered New Map 76 | . . 76 . . Time Decay 234 | . 120 47 . 67 Lost Part 34 | . 20 . . 14 Lost Ally 25 | . . . . 25 Squads Dispatched . | . . . . . Investigation . | . . . . . Extermination . | . . . . . Reinforcement . | . . . . . Assault . | . . . . . Garrison . | . . . . . Intercept . | . . . . . Searches Triggered . | . . . . . Construction Impeded . | . . . . . Haulers Reinforced . | . . . . . Active Scanning Responses . | . . . . . Cargo Convoy Interrupts . | . . . . . Stealth | -11 -10 -10 -10 -9 --------- Run | Yrd Mat Min Exi Min Distress Signals 1 | . 1 . . . Communications Jammed . | . . . . . Distress Signals . | . . . . . Times Spotted 19 | . 6 . . 13 Peak Tracking Total 8 | . 3 . . 8 Tactical Retreats 1 | . . . . 1 Traps | -11 -10 -10 -10 -9 ------- Run | Yrd Mat Min Exi Min Traps Triggered . | . . . . . Indirectly . | . . . . . Trap Hack Attempts . | . . . . . Triggered . | . . . . . Disarmed . | . . . . . Reprogrammed . | . . . . . Reused . | . . . . . Traps Extracted . | . . . . . Installed . | . . . . . Triggered . | . . . . . Machines | -11 -10 -10 -10 -9 ---------- Run | Yrd Mat Min Exi Min Machines Disabled 6 | . 4 . 1 1 Max in Single Turn 3 | . 3 . 1 . Machines Repaired . | . . . . . Machines Dismantled . | . . . . . Machines Sabotaged . | . . . . . Overloaded Fab Kills . | . . . . . Hacking | -11 -10 -10 -10 -9 --------- Run | Yrd Mat Min Exi Min Machines Accessed 3 | . 1 . 2 . Terminals 1 | . 1 . . . Fabricators . | . . . . . Repair Stations . | . . . . . Recycling Units . | . . . . . Scanalyzers . | . . . . . Garrison Access . | . . . . . Total Hacks 5 | . 3 . 2 . Successful 3 | . 1 . 2 . Failed 2 | . 2 . . . Catastrophic . | . . . . . Database Lockouts . | . . . . . Manual 3 | . 3 . . . Terminals 3 | . 3 . . . Fabricators . | . . . . . Repair Stations . | . . . . . Recycling Units . | . . . . . Scanalyzers . | . . . . . Garrison Access . | . . . . . Terminal Hacks 2 | . . . 2 . Record 2 | . . . 2 . Fabricator Hacks . | . . . . . Repair Station Hacks . | . . . . . Recycling Unit Hacks . | . . . . . Scanalyzer . | . . . . . Garrison Access Hacks . | . . . . . Unauthorized Hacks 1 | . 1 . . . Terminals 1 | . 1 . . . Botnet 1 | . 1 . . . Fabricators . | . . . . . Repair Stations . | . . . . . Recycling Units . | . . . . . Scanalyzers . | . . . . . Garrison Access . | . . . . . Data Cores Recovered . | . . . . . Used . | . . . . . Hacking Detections 1 | . 1 . . . Full Trace Events . | . . . . . Feedback Events . | . . . . . Feedback Blocked . | . . . . . Robot Schematics Acquired . | . . . . . Robots Built . | . . . . . Authchips . | . . . . . Time . | . . . . . Total Robot Build Rating . | . . . . . Part Schematics Acquired . | . . . . . Parts Built . | . . . . . Authchips . | . . . . . Time . | . . . . . Total Part Build Rating . | . . . . . Part Studies Acquired . | . . . . . Parts Repaired . | . . . . . Time . | . . . . . Parts Recycled . | . . . . . Recycled Matter . | . . . . . Retrieved Matter . | . . . . . Retrieved Components . | . . . . . Parts Scanalyzed . | . . . . . Part Schematics Acquired . | . . . . . Parts Damaged . | . . . . . Bothacking | -11 -10 -10 -10 -9 ------------ Run | Yrd Mat Min Exi Min Used RIF Installer . | . . . . . Robots Hacked . | . . . . . Non-combat . | . . . . . Combat . | . . . . . Robot Hacks Applied . | . . . . . Relay Couplers Released . | . . . . . Fabnet Peak Effective % . | . . . . . Robots Rewired 4 | . . . 4 . Allies Hacked . | . . . . . Hacks Repelled . | . . . . . Allies | -11 -10 -10 -10 -9 -------- Run | Yrd Mat Min Exi Min Total Allies 4 | . . . 4 . Largest Group 3 | . . . 3 3 Highest-Rated Group 50 | . . . 50 50 Highest-Rated Ally 21 | . . . 21 21 Total Orders . | . . . . . Ally Attacks 14 | . . . . 14 Total Damage 215 | . . . . 215 Kills 4 | . . . . 4 Allies Corrupted . | . . . . . Allies Melted . | . . . . . Intel | -11 -10 -10 -10 -9 ------- Run | Yrd Mat Min Exi Min Active Infowar (turns) . | . . . . . Robot Analysis Total . | . . . . . Derelict Logs Recovered 1 | . . . . 1 Drone Launches . | . . . . . Drone Recoveries . | . . . . . Exploration | -11 -10 -10 -10 -9 ------------- Run | Yrd Mat Min Exi Min Turns Passed 1910 | 57 300 224 997 332 Spaces Moved 1810 | 55 272 248 987 248 Core 15 | 12 . . . 3 Treads . | . . . . . Legs . | . . . . . Wheels 1795 | 43 272 248 987 245 Hover . | . . . . . Flight . | . . . . . Fastest Speed 50 | 50 90 90 90 50 Average Speed 89 | 84 90 90 90 89 Slowest Speed 100 | 100 90 90 90 100 Overloaded Moves . | . . . . . Propulsion Burnouts . | . . . . . Robots Hopped . | . . . . . Potential Cave-ins 8 | . . . 5 3 Cave-ins Triggered 1 | . . . 1 . Exploration Rate (%) 51 | 3 61 47 92 55 Regions Visited 4 Branch Regions 3 Pre-discovered Areas 1 | . . . . 1 Known Exits Taken 3 | . 1 1 1 . Unknown Exits Taken 1 | 1 . . . . Scrap Searched 2 | . . . . 2 Spaces Dug 32 | . 4 . 28 . Terrain Destroyed 225 | . 98 . 71 56 Melee . | . . . . . Projectile . | . . . . . AOE 225 | . 98 . 71 56 Terrain Rammed . | . . . . . Walls Destroyed . | . . . . . Machines Disabled . | . . . . . Actions | -11 -10 -10 -10 -9 --------- Run | Yrd Mat Min Exi Min Total 2046 | 62 304 248 1073 359 Wait 110 | . 6 . 20 84 Move 1805 | 54 271 247 985 248 Hop . | . . . . . Pick Up 14 | 2 3 1 2 6 Fast Attach 9 | 6 2 . . 1 Attach 4 | . 2 . . 2 Detach . | . . . . . Swap 3 | . . . . 3 Drop 11 | . 2 . . 9 Fire 44 | . 18 . 22 4 Melee 2 | . . . . 2 Ram . | . . . . . Kick . | . . . . . Crush . | . . . . . Escape Stasis 1 | . . . 1 . Rewire 43 | . . . 43 . Trap . | . . . . . Miscellaneous . | . . . . . Route ------- -11/Scrapyard -10/Materials (discovered 2 exits: *Mat / *Min) -10/Mines (discovered 2 exits: *Mat / *Exi) -10/Exiles -9/Mines (discovered 1 exit: *Mat) History --------- Turn | Location | Event 31 | -11/Scrapyard | Discovered new exit (range 13) 58 | -11/Scrapyard | Entered Materials 244 | -10/Materials | Discovered new exit (range 10) 252 | -10/Materials | Identified exit to Materials 303 | -10/Materials | Build established: Mutant 322 | -10/Materials | Discovered new exit (range 11) 358 | -10/Materials | Identified exit to Mines 358 | -10/Materials | Entered Mines 385 | -10/Mines | Met a Derelict bent on vengeance 395 | -10/Mines | A weapon hastily lodged in a ceiling crevice suddenly fell to the ground 424 | -10/Mines | Discovered exit to Materials (range 5) 578 | -10/Mines | Deemed a non-threat by the Exiles lab entrance 578 | -10/Mines | Discovered new exit (range 5) 581 | -10/Mines | Identified exit to Exiles 582 | -10/Mines | Entered Exiles 582 | -10/Exiles | Found Exiles lab destroyed 1017 | -10/Exiles | Discovered new exit (range 10) 1073 | -10/Exiles | Identified exit to Mines 1380 | -10/Exiles | Crushed by falling debris 1579 | -10/Exiles | Entered Mines 1579 | -9/Mines | Accompanied by 3 allies 1646 | -9/Mines | Discovered new exit (range 9) 1649 | -9/Mines | Received a Rocket Launcher from a helpful Derelict 1663 | -9/Mines | Identified exit to Materials 1683 | -9/Mines | Learned location of Storage (-8) 1733 | -9/Mines | Learned Materials terminal intel 1859 | -9/Mines | Assembled infested the area 1864 | -9/Mines | Assisted by a Guerilla fighting off Assembled 1897 | -9/Mines | Core integrity fell below 50% 1910 | -9/Mines | Core integrity fell below 20% 1911 | -9/Mines | Destroyed by D-53 Grenadier with Mini Grenade Launcher Last Messages --------------- 01884_ Slug penetrates Wall. 01887_ Core Extractor disabled. 01896_ C-45 Heavy ARC bursts open, deploying its payload. 01896_ D-53 Grenadier unfolds itself. 01897_ Wheel destroyed. 01899_ The unstable cave ceiling collapses. 01901_ Rocket Launcher destroyed. 01902_ The unstable cave ceiling collapses. 01904_ Knocked back. 01905_ Dropped Aluminum Leg. 01905_ U-05 Engineer builds a Wall. 01905_ as-84703 destroyed. 01906_ The unstable cave ceiling collapses. 01908_ Dropped Com. Wheel. 01909_ Dropped Sml. Storage Unit. 01909_ Ion Engine destroyed. 01909_ U-05 Engineer lays Concrete. 01909_ K-01 Serf collects debris. 01911_ The unstable cave ceiling collapses. Map ----- +----------------------------------------------------+ | ##?? #?? ????#????????????????????????????????? | | ### #?? #??? #????????????????????????????????? | | #??# #??? #?????????????? ?????????????????? | | #??# #??# ##????????????? ?????????????????? | | ####??# ### #????????????? ?????????????????? | | ##???# #????????????? ?????????????????? | | # ##### #?????????????? ?????????????????? | | ### #????####?????? ?????????????????? | | ??# ##???## ##????? ?????????????????? | | ??### ##### ##????# ###??# #????????????????? | | ????# #???# ##?????# #??# #????????????????? | | ????# #???# ######?# #??# #????????????????? | | ????# #???# ### ????# #????????????????? | | ????# #???# ## #?????# #????????????????? | | ???# ##??###### # #????### #????????????????? | | ### #?????### # ##??## # ####????? #??????? | | #????## ##### #????? #??????? | | ##????## ##???? #??????? | | ##????## ##### % ##???? #??????? | | ##?????# #### d #????? #??????? | | ]##??????# %! ### #???## ###????? | | # #???#???# !| ### a #??## ##???? | | # ## ##??# #?# #?## #???? | | #??# ## ## #### #???? | | #??## #?## # = # #???? | | #???###???# @ ! #????? | | ##?????????## # #?????? | | # ###???????????######## a #?????? | | #####????????????????????## aa ##????? | | ??????????????????????????# ### ##???? | | ??????????????????????????## ##?## #???? | | ???????????????????????????## # ##??# #???? | | ????????????????????????????#######???# #???? | | ???????????????????????????????## #### ##???? | | ??????????????????????????#????# ## ##????? | | ????????????????????????### ???# "" ##????? | | ????????????????????????? ??## """ ##???? | | ??????????????????????????? ?## """ #???? | | ????????????????????????????? ?## #???? | | ??????????????????????????????# ## ##???? | | ???????????????????????????????# ###????? | | ???????????????????????????????# #####??????? | | ???????????????????????????????# ##??????????? | | ???????????????????????????????# #???????????? | | ?????????????????????????????? % ???????????? | | ?????????????????????????????### ## ??????????? | | ???????????????????????????????# ?# #?????????? | | ??????????????????????????????? ?## #?????????? | | ?????????????????????????????? ???###?????????? | | ????????????????????????????? ???????????????? | +----------------------------------------------------+ Best States ------------- Heat Dissipation 25 Energy Generation 10 Energy Capacity 250 Matter Stores 300 Matter Capacity 300 Sight Range 16 Terrain Scan Density 10 Evasion (%) 44 Item Schematics ----------------- None Robot Schematics ------------------ None Fabricated ------------ Nothing Repaired ---------- Nothing Studied --------- None Alien Tech Used ----------------- None Achievements -------------- None Challenges ------------ None Game ------ Seed GlidesysMetamassStorm Manual? 0 Play Time 00:17:50 Cumulative 31.8 hours Start 2026.03.30 @ 08:51:19 End 2026.04.01 @ 14:06:31 Sessions 1 Manual Loads 0 Difficulty Rogue Special Mode None Game No. 38 Rogue 38 Adventurer 0 Explorer 0 Win Type - Total 1 Types 1/0/0/0/0/0/0/0/0/0 Lore% 33 Gallery% 29 Achievement% 24 Wizard Run 0 Options --------- Layout 1 ASCII 0 Keyboard 0 Movement Vi Keybinds 0 Fullscreen 1 Font 24/Smallcaps Map View 50x40 Zoom Use 0% Tactical HUD 1 Map Filters NONE Filters NONE Steam 1 RUN: baf0e5b6-7395-4c7f-87e9-d6af4b64f3ee